{"text_format":"1","workbook":"xlsx","n_sheets":5,"sheets":["A) ESTADO REPR. GASTOS","B) DETALLE OTROS ING. O SUBV.","C) Gastos de Personal","D) Actividades Científicas","E) Otros Gastos"],"not_rendered":{"charts":0,"images":2,"macros":0,"external_links":0,"defined_names":15,"comments":0,"pivot_tables":0},"unopened":[],"bounds":{"document_bytes":16777216,"sheet_cells":100000,"rows_first":2000,"rows_last":500,"rows_between":2000,"halvings":0,"cell_chars":16384,"cell_head_chars":4096},"cells_cut":0,"cells_raw":0,"read":"whole","date_system":"1900"}

{"sheet":"A) ESTADO REPR. GASTOS","index":0,"n_rows":147,"n_cols":10,"rows_kept":147,"cut":false,"hidden":false,"merged":[[146,0,146,9],[110,0,110,1],[116,0,116,9],[121,0,121,9],[101,0,101,9],[102,0,102,9],[108,0,108,1],[109,0,109,1],[115,0,115,9],[103,0,103,9],[100,0,100,9],[107,0,107,1],[94,0,94,1],[96,0,96,1],[95,0,95,1],[97,0,97,1],[98,0,98,1],[104,0,104,9],[85,8,94,9],[89,7,93,7],[93,0,93,1],[1,0,1,9],[3,0,3,9],[76,0,76,9],[6,1,6,8],[7,1,7,8],[8,3,8,8],[16,1,16,9],[17,1,17,9],[5,1,5,2],[27,0,27,9],[18,1,18,9],[19,1,19,9],[80,0,80,1],[92,0,92,1],[77,0,77,9],[21,1,21,6],[85,0,85,1],[87,0,87,1],[89,0,89,1],[84,0,84,1],[90,0,90,1],[91,0,91,1]]}
[]
["Convocatoria Severo Ochoa/ María de Maeztu 2015- Informe de Seguimiento Económico Anual. Memoria económica abreviada (versión 10/01/2017)"]
[]
[" MEMORIA ECONÓMICA ABREVIADA"]
[]
["REFERENCIA DE LA AYUDA:","Introduzca referencia"]
["BENEFICIARIO:","Introduzca el nombre del Beneficiario"]
["CENTRO/UNIDAD:","Introduzca el nombre del Centro/Unidad Acreditado como Severo Ochoa/ María de Maeztu"]
["AÑO CONVOCATORIA:","Año","C.I.F.:","Introduzca el CIF del beneficiario"]
[]
[" PERIODO JUSTIFICADO: ","INICIO (dd/mm/aaaa):",null,"dd/mm/aaaa"]
[null,"FIN (dd/mm/aaaa):",null,"dd/mm/aaaa"]
[]
[]
["MODIFICACIONES DE LA RESOLUCIÓN DE CONCESIÓN"]
[]
["FECHA DE LA RESOLUCIÓN","CONCEPTO MODIFICADO"]
[]
[]
[]
[]
["Fdo. D./Dña."]
["FECHA DE REALIZACIÓN DE LA MEMORIA:"]
[]
[]
["A) ESTADO REPRESENTATIVO DE LOS GASTOS INCURRIDOS EN LA REALIZACIÓN DE LAS ACTIVIDADES"]
[]
["Incluya a continuación una descripción de los gastos realizados en el período imputables a la subvención recibida e indique la relación del gasto con el plan estratégico/programa estratégico de investigación. "]
[]
[]
[]
[]
[]
[]
[]
[]
[]
[]
[]
[]
[]
[]
[]
[]
[]
[]
[]
[]
[]
[]
[]
[]
[]
[]
[]
[]
[]
[]
[]
[]
[]
[]
[]
[]
[]
[]
[]
[]
[]
[]
[]
[]
[]
[]
[]
[]
[" A continuación, consigne   los valores totales correspondientes a los conceptos de gasto que se indican. Incluya el gasto total realizado en la columna correspondiente a \"gasto real\", y el imputado a la ayuda en la columna \"Gasto imputable a SO (€)\". Solamente debe rellenar las casillas en color verde claro. El resto se calculará automáticamente."]
["Compruebe que estos totales corresponden con la suma de los conceptos detallados en los anexos correspondientes y con la suma de los importes detallados en los listados de facturas aportados en la justificación económica."]
[]
["GASTOS REALIZADOS",null,"Presupuesto (1)","%","Gasto real (€)","Cofinanciación (€)","Imputable a SO (€)","% gasto total","Remanente","Gastado (en % presup.)"]
[" COSTES DIRECTOS",null,{"$f":"+C82+C85","v":0},{"$f":"+C81/$C$99","v":{"$error":"#DIV/0!"}},{"$f":"+E82+E85","v":0},{"$f":"+F82+F85","v":0},{"$f":"+G82+G85","v":0},{"$f":"+G81/$G$99","v":{"$error":"#DIV/0!"}},{"$f":"+C81-G81","v":0},{"$f":"+G81/$C$108","v":0}]
["GASTOS PERSONAL (2)",null,{"$f":"+C83+C84","v":0},{"$f":"+C82/$C$99","v":{"$error":"#DIV/0!"}},{"$f":"+E83+E84","v":0},{"$f":"+F83+F84","v":0},0,{"$error":"#DIV/0!"},{"$f":"+C82-G82","v":0},{"$f":"+G82/$C$108","v":0}]
["CONTRATACIÓN",null,null,{"$f":"+C83/$C$99","v":{"$error":"#DIV/0!"}},{"$f":"'C) Gastos de Personal'!G51","v":0},{"$f":"E83-G83","v":0},{"$f":"'C) Gastos de Personal'!H51","v":0},{"$f":"+G83/$G$99","v":{"$error":"#DIV/0!"}},{"$f":"+C83-G83","v":0}]
[" COMPLEMENTOS SALARIALES",null,null,{"$error":"#DIV/0!"},{"$f":"'C) Gastos de Personal'!I51","v":0},0,{"$f":"'C) Gastos de Personal'!J51","v":0},{"$error":"#DIV/0!"},{"$f":"+C84-G84","v":0},{"$f":"+G84/$C$108","v":0}]
["GASTOS DE EJECUCIÓN",null,{"$f":"+C86+C89","v":0},{"$f":"+C85/$C$99","v":{"$error":"#DIV/0!"}},{"$f":"+E86+E89","v":0},{"$f":"E85-G85","v":0},{"$f":"+G86+G89","v":0},{"$error":"#DIV/0!"},null,{"$f":"+G85/$C$108","v":0}]
["EQUIPAMIENTO",null,{"$f":"+C87+C88","v":0},{"$f":"+C86/$C$99","v":{"$error":"#DIV/0!"}},{"$f":"SUM(E88:E88)","v":0},0,{"$f":"SUM(G88:G88)","v":0},{"$error":"#DIV/0!"}]
["3. Infraestructuras",null,null,null,{"$f":"'E) Otros Gastos'!C35","v":0},0,{"$f":"'E) Otros Gastos'!E35","v":0},{"$error":"#DIV/0!"}]
["4. Otros bienes inventariables",null,null,null,{"$f":"'E) Otros Gastos'!C52","v":0},0,{"$f":"'E) Otros Gastos'!E52","v":0},{"$error":"#DIV/0!"}]
[" OTROS GASTOS ",null,null,{"$f":"+C89/$C$99","v":{"$error":"#DIV/0!"}},{"$f":"SUM(E90:E95)","v":0},{"$f":"E89-G89","v":0},{"$f":"SUM(G90:G95)","v":0},{"$error":"#DIV/0!"}]
["5. Material fungible",null,null,null,{"$f":"'E) Otros Gastos'!C70","v":0},{"$f":"E90-G90","v":0},{"$f":"'E) Otros Gastos'!E70","v":0}]
["6. Contratación  (consultoría, asistencia técnica u otros servicios)",null,null,null,null,0]
["7. Viajes y dietas del personal del centro o de otras personas, imputables al proyecto. (3)",null,null,null,null,0]
["8. Organización de actividades científicas, conferencias, seminarios, etc. (4) ",null,null,null,{"$f":"'D) Actividades Científicas'!C95","v":0},0,{"$f":"'D) Actividades Científicas'!E95","v":0}]
["9. Otros (especificar)",null,null,null,null,0]
["10. Informe de auditoria ",null,null,null,null,0,null,{"$f":"+G95/$G$99","v":{"$error":"#DIV/0!"}}]
[" COSTES INDIRECTOS (resolución) (5)",null,{"$f":"+C97","v":0},{"$f":"+C96/$C$99","v":{"$error":"#DIV/0!"}},null,null,{"$f":"G81*D97","v":{"$error":"#DIV/0!"}},{"$f":"+G96/$G$99","v":{"$error":"#DIV/0!"}},{"$f":"+C96-G96","v":{"$error":"#DIV/0!"}},{"$f":"+G96/$C$108","v":{"$error":"#DIV/0!"}}]
["COSTES INDIRECTOS (y % del coste directo)",null,null,{"$f":"C97/C81","v":{"$error":"#DIV/0!"}},null,null,{"$f":"G81*(C96/C81)","v":{"$error":"#DIV/0!"}},{"$f":"G97/G81","v":{"$error":"#DIV/0!"}}]
[]
["TOTAL ",null,{"$f":"+C81+C96","v":0},{"$f":"+D81+D96","v":{"$error":"#DIV/0!"}},{"$f":"+E82+E84+E85+E96","v":0},null,{"$f":"+G82+G84+G85+G96","v":{"$error":"#DIV/0!"}},{"$f":"+H82+H84+H85+H96","v":{"$error":"#DIV/0!"}},{"$f":"+I81+I96","v":{"$error":"#DIV/0!"}},{"$f":"+G99/$C$108","v":{"$error":"#DIV/0!"}}]
[]
["(1) Introduzca en las casillas marcadas en verde el presupuesto y la distribución que figura en la resolución de concesión. En el caso de que ésta haya sido modificada, consigne los datos de la última modificación."]
["(2) Introduzca en el Anexo 1 los detalles correspondientes a los gastos de personal contratado así como los complementos salariales. En las casillas de color verde claro deberán consignarse los totales."]
["(3) Introduzca en el Anexo 2 los gastos detallados correspondientes a viajes y dietas imputables a la ayuda Severo Ochoa/María de Maeztu."]
["(4) Introduzca en el Anexo 3 los gastos detallados correspondientes a estas actividades. Si la organización de estas actividades incluye el pago de viajes y dietas, deberan consignarse aquí."]
["(5)  Los costes indirectos que finalmente se imputen resultarán de la aplicación sobre los gastos totales de la actuación válidamente justificados del mismo porcentaje que suponen los costes indirectos respecto del total concedido en la resolución de concesión. Por lo tanto, los datos de la fila 92 \"COSTES INDIRECTOS y % de C. directos\" son una aproximación y representan el máximo que puede imputarse a la ayuda."]
[]
["INGRESOS Y GASTOS DE LA ACTIVIDAD (6)",null,"Presupuesto   (€)","%",null,null,"Gasto (€)","%","Resto","Gastado (%)"]
["1. Ayuda Severo Ochoa",null,4000000,{"$f":"+C108/$C$112","v":1},null,null,{"$f":"G99","v":{"$error":"#DIV/0!"}},{"$f":"+G108/$G$112","v":{"$error":"#DIV/0!"}},{"$f":"+C108-G108","v":{"$error":"#DIV/0!"}},{"$f":"G108/C108","v":{"$error":"#DIV/0!"}}]
["2. Otras subvenciones o ayudas",null,null,{"$f":"+C109/$C$112","v":0},null,null,null,{"$f":"+G109/$G$112","v":{"$error":"#DIV/0!"}},{"$f":"+C109-G109","v":0},{"$f":"G109/C109","v":{"$error":"#DIV/0!"}}]
["3. Financiación de la propia entidad",null,null,{"$f":"+C110/$C$112","v":0},null,null,null,{"$f":"+G110/$G$112","v":{"$error":"#DIV/0!"}},{"$f":"+C110-G110","v":0},{"$f":"G110/C110","v":{"$error":"#DIV/0!"}}]
["4. Otros ingresos (especificar) (7)"]
["TOTAL INGRESOS",null,{"$f":"SUM(C108:C110)","v":4000000},{"$f":"SUM(D108:D110)","v":1},null,null,{"$f":"SUM(G108:G110)","v":{"$error":"#DIV/0!"}},{"$f":"SUM(H108:H110)","v":{"$error":"#DIV/0!"}},{"$f":"SUM(I108:I110)","v":{"$error":"#DIV/0!"}},{"$f":"G112/C112","v":{"$error":"#DIV/0!"}}]
[]
["OTRAS FUENTES",null,{"$f":"C112-C108","v":0},{"$f":"C114/C112","v":0},null,null,{"$f":"G112-G108","v":{"$error":"#DIV/0!"}},{"$f":"G114/G112","v":{"$error":"#DIV/0!"}},{"$f":"I112-I108","v":{"$error":"#DIV/0!"}},{"$f":"I114/C114","v":{"$error":"#DIV/0!"}}]
[]
["(6) Recuerde que la ayuda \"Severo Ochoa\" es compatible con otras ayudas siempre que no se supere el coste de la actividad realizada. En particular, es posible utilizar los fondos Severo Ochoa para cofinanciar otras ayudas de los planes nacionales de I+D+i. Por ello, debe justificar haber hecho gastos por el valor de la casilla  \"Total ingresos\" (C99) o, por el contrario, devolver el remanente. "]
["(7) Incluye los ingresos por pago de cuotas, matrículas o inscripciones a las actividades científicas, conferencias, etc. organizadas por el centro."]
[]
["SALDO ANUAL =  INGRESOS - GASTOS",null,{"$f":"+C112-C99","v":4000000},null,null,null,{"$f":"+G112-G99","v":{"$error":"#DIV/0!"}},null,{"$f":"+I112-I99","v":{"$error":"#DIV/0!"}}]
[]
[]
["Indique las principales causas que explican las desviaciones sobre la distribución del presupuesto establecido en la resolución de concesión y justifíquelas."]
[]
[]
[]
[]
[]
[]
[]
[]
[]
[]
[]
[]
[]
[]
[]
[]
[]
[]
[]
[]
[]
[]
[]
[]
["Observaciones por parte del beneficiario"]

{"sheet":"B) DETALLE OTROS ING. O SUBV.","index":1,"n_rows":63,"n_cols":9,"rows_kept":63,"cut":false,"hidden":false,"merged":[[44,1,44,5],[38,1,38,5],[39,1,39,5],[40,1,40,5],[42,1,42,5],[43,1,43,5],[0,0,0,8],[2,0,2,8],[3,0,3,8],[37,1,37,5],[6,1,6,8],[7,1,7,8],[8,3,8,8],[30,0,30,7],[32,1,32,5],[33,1,33,5],[34,1,34,5],[35,1,35,5],[36,1,36,5]]}
[{"$f":"'A) ESTADO REPR. GASTOS'!A2:J2","v":"Convocatoria Severo Ochoa/ María de Maeztu 2015- Informe de Seguimiento Económico Anual. Memoria económica abreviada (versión 10/01/2017)"}]
[]
["MEMORIA ECONÓMICA ABREVIADA"]
["B) DETALLE DE OTROS INGRESOS O SUBVENCIONES QUE HAN FINANCIADO LOS GASTOS SUBVENCIONABLES"]
[]
["REFERENCIA DE LA AYUDA:",{"$f":"'A) ESTADO REPR. GASTOS'!B6:C6","v":"Introduzca referencia"}]
["BENEFICIARIO:",{"$f":"'A) ESTADO REPR. GASTOS'!B7:I7","v":"Introduzca el nombre del Beneficiario"}]
["CENTRO:",{"$f":"'A) ESTADO REPR. GASTOS'!B8:I8","v":"Introduzca el nombre del Centro/Unidad Acreditado como Severo Ochoa/ María de Maeztu"}]
["AÑO CONVOCATORIA:",{"$f":"'A) ESTADO REPR. GASTOS'!B9","v":"Año"},"C.I.F.:",{"$f":"'A) ESTADO REPR. GASTOS'!D9:I9","v":"Introduzca el CIF del beneficiario"}]
[]
["PERIODO JUSTIFICADO:","INICIO (dd/mm/aaaa):",{"$f":"'A) ESTADO REPR. GASTOS'!D11","v":"dd/mm/aaaa"}]
[null,"FIN (dd/mm/aaaa):",{"$f":"'A) ESTADO REPR. GASTOS'!D12","v":"dd/mm/aaaa"}]
[]
[]
[]
[]
["Nº Orden","Procedencia de los fondos","Fecha Resolución","a) Importe otorgado gastos personal (GP)","b) Importe otorgado otros gastos corrientes (OGC)","c) Importe otorgado gastos equipamiento (GE)","d) Importe otorgado otros (especificar)","Totales","%"]
[1,null,null,null,null,null,null,{"$f":"+D18+E18+F18+G18","v":0},{"$f":"H18/$H$29","v":{"$error":"#DIV/0!"}}]
[{"$f":"+A18+1","v":2},null,null,null,null,null,null,{"$f":"+D19+E19+F19+G19","v":0},{"$error":"#DIV/0!"}]
[3,null,null,null,null,null,null,{"$f":"+D20+E20+F20+G20","v":0},{"$error":"#DIV/0!"}]
[4,null,null,null,null,null,null,0,{"$error":"#DIV/0!"}]
[5,null,null,null,null,null,null,0,{"$error":"#DIV/0!"}]
[6,null,null,null,null,null,null,0,{"$error":"#DIV/0!"}]
[7,null,null,null,null,null,null,0,{"$error":"#DIV/0!"}]
[8,null,null,null,null,null,null,0,{"$error":"#DIV/0!"}]
["Inserte aquí más filas si es necesario"]
[{"$f":"+A25+1","v":9},null,null,null,null,null,null,0,{"$f":"H27/$H$29","v":{"$error":"#DIV/0!"}}]
[10,null,null,null,null,null,null,0,{"$f":"H28/$H$29","v":{"$error":"#DIV/0!"}}]
[null,null,"TOTALES",{"$f":"SUM(D18:D28)","v":0},0,0,0,0,{"$error":"#DIV/0!"}]
[]
["En caso de haberse otorgado para varios conceptos sin especificar los importes individualizados debe imputar la cuantía total en la columna d) y explicar los conceptos subvencionados en la tabla adjunta."]
[]
["Nº Orden","Conceptos subvencionados",null,null,null,null,"d) Importe otorgado otros (especificar)"]
[1,null,null,null,null,null,{"$f":"$G18","v":0}]
[2,null,null,null,null,null,0]
[3,null,null,null,null,null,0]
[4,null,null,null,null,null,0]
[5,null,null,null,null,null,0]
[6,null,null,null,null,null,0]
[7,null,null,null,null,null,0]
[8,null,null,null,null,null,0]
["Inserte aquí más filas si es necesario"]
[9,null,null,null,null,null,{"$f":"$G28","v":0}]
[10,null,null,null,null,null,{"$f":"$G29","v":0}]
[null,null,null,null,null,null,{"$f":"SUM(G34:G43)","v":0}]
[]
[]
["Distribución porcentual de la procedencia de los fondos"]
[1,{"$f":"B18","v":0},{"$f":"+H18/$H$29","v":{"$error":"#DIV/0!"}}]
[{"$f":"+A49+1","v":2},{"$f":"B19","v":0},{"$f":"+H19/$H$29","v":{"$error":"#DIV/0!"}}]
[3,0,{"$error":"#DIV/0!"}]
[4,0,{"$error":"#DIV/0!"}]
[5,0,{"$error":"#DIV/0!"}]
[6,0,{"$error":"#DIV/0!"}]
[7,0,{"$error":"#DIV/0!"}]
[8,0,{"$error":"#DIV/0!"}]
["Inserte aquí más filas si es necesario"]
[{"$f":"+A56+1","v":9},{"$f":"B26","v":0},{"$f":"+H27/$H$29","v":{"$error":"#DIV/0!"}}]
[10,{"$f":"B27","v":0},{"$f":"+H28/$H$29","v":{"$error":"#DIV/0!"}}]
[]
[null,null,{"$f":"SUM(C49:C59)","v":{"$error":"#DIV/0!"}}]
[]
["Fondos adicionales recibidos para el desarrollo de las actividades subvencionadas y justificación de que no se supera el coste total de la actividad."]

{"sheet":"C) Gastos de Personal","index":2,"n_rows":51,"n_cols":11,"rows_kept":51,"cut":false,"hidden":false,"merged":[[20,6,20,7],[20,8,20,9],[20,0,21,0],[20,1,21,1],[20,2,21,2],[20,3,21,3],[20,4,21,4],[20,5,21,5],[8,3,8,8],[5,1,5,2],[0,0,0,8],[2,0,2,8],[3,0,3,8],[6,1,6,8],[7,1,7,8]]}
[{"$f":"'A) ESTADO REPR. GASTOS'!A2:J2","v":"Convocatoria Severo Ochoa/ María de Maeztu 2015- Informe de Seguimiento Económico Anual. Memoria económica abreviada (versión 10/01/2017)"}]
[]
["MEMORIA ECONÓMICA ABREVIADA"]
["C) DETALLE DE GASTOS DE PERSONAL"]
[]
["REFERENCIA:",{"$f":"'A) ESTADO REPR. GASTOS'!B6:C6","v":"Introduzca referencia"}]
["BENEFICIARIO:",{"$f":"'A) ESTADO REPR. GASTOS'!B7:I7","v":"Introduzca el nombre del Beneficiario"}]
["CENTRO:",{"$f":"'A) ESTADO REPR. GASTOS'!B8:I8","v":"Introduzca el nombre del Centro/Unidad Acreditado como Severo Ochoa/ María de Maeztu"}]
["AÑO CONVOCATORIA:",{"$f":"'A) ESTADO REPR. GASTOS'!B9","v":"Año"},"C.I.F.:",{"$f":"'A) ESTADO REPR. GASTOS'!D9:I9","v":"Introduzca el CIF del beneficiario"}]
[]
["PERIODO JUSTIFICADO:","INICIO (dd/mm/aaaa):",{"$f":"'A) ESTADO REPR. GASTOS'!D11","v":"dd/mm/aaaa"}]
[null,"FIN (dd/mm/aaaa):",{"$f":"'A) ESTADO REPR. GASTOS'!D12","v":"dd/mm/aaaa"}]
[]
[]
[]
[]
[]
[]
[]
[]
["NOMBRE DEL TRABAJADOR","NIF/NIE","CATEGORÍA PROFESIONAL","ACTIVIDAD REALIZADA","FECHA DE ALTA","FECHA DE BAJA (en su caso)","CONTRATACIÓN",null,"COMPLEMENTOS SALARIALES"]
[null,null,null,null,null,null,"GASTO TOTAL","IMPUTADO A SEV/MDM","GASTO TOTAL","IMPUTADO A SEV/MDM","OBSERVACIONES"]
[]
[]
[]
[]
[]
[]
[]
[]
[]
[]
[]
[]
[]
[]
[]
[]
[]
[]
[]
[]
[]
[]
[]
[]
[]
[null,"Inserte aquí más filas si es necesario"]
[]
[]
[null,null,null,null,null,"SUBTOTAL",{"$f":"SUM(G23:G50)","v":0},{"$f":"SUM(H23:H50)","v":0},{"$f":"SUM(I23:I50)","v":0},{"$f":"SUM(J23:J50)","v":0}]

{"sheet":"D) Actividades Científicas","index":3,"n_rows":95,"n_cols":5,"rows_kept":95,"cut":false,"hidden":false,"merged":[[8,3,8,4],[34,0,35,0],[34,2,35,2],[34,3,35,3],[34,4,35,4],[0,0,0,4],[2,0,2,4],[3,0,3,4],[6,1,6,4],[7,1,7,4]]}
[{"$f":"'A) ESTADO REPR. GASTOS'!A2:J2","v":"Convocatoria Severo Ochoa/ María de Maeztu 2015- Informe de Seguimiento Económico Anual. Memoria económica abreviada (versión 10/01/2017)"}]
[]
["MEMORIA ECONÓMICA ABREVIADA"]
["D) DETALLE DE GASTOS DE ORGANIZACIÓN DE ACTIVIDADES CIENTÍFICAS"]
[]
["REFERENCIA DE LA AYUDA:",{"$f":"'A) ESTADO REPR. GASTOS'!B6:C6","v":"Introduzca referencia"}]
["BENEFICIARIO:",{"$f":"'A) ESTADO REPR. GASTOS'!B7:I7","v":"Introduzca el nombre del Beneficiario"}]
["CENTRO:",{"$f":"'A) ESTADO REPR. GASTOS'!B8:I8","v":"Introduzca el nombre del Centro/Unidad Acreditado como Severo Ochoa/ María de Maeztu"}]
["AÑO CONVOCATORIA:",{"$f":"'A) ESTADO REPR. GASTOS'!B9","v":"Año"},"C.I.F.:",{"$f":"'A) ESTADO REPR. GASTOS'!D9:I9","v":"Introduzca el CIF del beneficiario"}]
[]
["PERIODO JUSTIFICADO:","INICIO (dd/mm/aaaa):",{"$f":"'A) ESTADO REPR. GASTOS'!D11","v":"dd/mm/aaaa"}]
[null,"FIN (dd/mm/aaaa):",{"$f":"'A) ESTADO REPR. GASTOS'!D12","v":"dd/mm/aaaa"}]
[]
[]
[]
[]
[]
[]
[]
[]
[]
[]
[]
["1) GASTOS DE VIAJES ASOCIADOS A  ACTIVIDADES CIENTÍFICAS ORGANIZADAS CON CARGO A LA AYUDA"]
["(Debe coincidir con lo especificado para actividades científicas en el modelo específico para gastos de viajes)"]
[]
["Viajes y dietas","Gastos Inscripción congresos (en su caso)","Gasto Total ","Cofinanciación","Imputable a SO (€)"]
[null,null,{"$f":"SUM(A28:B28)","v":0}]
[]
[]
[]
["2) GASTOS DE ORGANIZACIÓN DE ACTIVIDADES CIENTÍFICAS ORGANIZADAS CON CARGO A LA AYUDA"]
[]
[]
["DESCRIPCIÓN DEL GASTO","JUSTIFICACIÓN","Gasto Total ","Cofinanciación (€)","Imputable a SO (€)"]
[]
[null,null,{"$f":"SUM(D37:E37)","v":0}]
[null,null,{"$f":"SUM(D38:E38)","v":0}]
[null,null,0]
[null,null,0]
[null,null,0]
[null,null,0]
[null,null,0]
[null,null,0]
[null,null,0]
[null,null,0]
[null,null,0]
[null,null,0]
[null,null,0]
[null,null,0]
[null,null,0]
[null,null,0]
[null,null,0]
[null,null,0]
[null,null,0]
[null,null,0]
[null,null,0]
[null,null,0]
[null,null,0]
[null,null,0]
[null,null,0]
[null,null,0]
[null,null,0]
[null,null,0]
[null,null,0]
[null,null,0]
[null,null,0]
[null,null,0]
[null,null,0]
[null,null,0]
[null,null,0]
[null,null,0]
[null,null,0]
[null,null,0]
[null,null,0]
[null,null,0]
[null,null,0]
[null,null,0]
[null,null,{"$f":"SUM(D79:E79)","v":0}]
[null,null,0]
[null,null,0]
[null,null,0]
[null,null,0]
[null,null,0]
["Inserte aquí más filas si es necesario"]
[null,null,{"$f":"SUM(D86:E86)","v":0}]
[null,null,{"$f":"SUM(D87:E87)","v":0},{"$f":"SUM(D37:D86)","v":0},{"$f":"SUM(E37:E86)","v":0}]
[]
[]
[]
["3) GASTOS TOTALES DE ORGANIZACIÓN DE ACTIVIDADES CIENTÍFICAS ORGANIZADAS CON CARGO A LA AYUDA"]
[]
[]
[null,null,"Gasto Total ","Cofinanciación","Imputable a SO"]
[null,null,{"$f":"+C28+C87","v":0},{"$f":"+D28+D87","v":0},{"$f":"+E28+E87","v":0}]

{"sheet":"E) Otros Gastos","index":4,"n_rows":90,"n_cols":8,"rows_kept":90,"cut":false,"hidden":false,"merged":[[87,5,87,9],[89,5,89,9],[87,0,87,1],[89,0,89,1],[57,5,57,9],[58,5,58,9],[59,5,59,9],[60,5,60,9],[61,5,61,9],[62,5,62,9],[63,5,63,9],[64,5,64,9],[65,5,65,9],[67,5,67,9],[69,5,69,9],[77,5,77,9],[78,5,78,9],[79,5,79,9],[80,5,80,9],[81,5,81,9],[83,0,83,1],[84,0,84,1],[85,0,85,1],[83,5,83,9],[84,5,84,9],[85,5,85,9],[80,0,80,1],[81,0,81,1],[82,0,82,1],[82,5,82,9],[76,0,76,1],[76,5,76,9],[77,0,77,1],[78,0,78,1],[79,0,79,1],[59,0,59,1],[60,0,60,1],[61,0,61,1],[56,0,56,1],[58,0,58,1],[56,5,56,9],[34,0,34,1],[34,5,34,6],[34,7,34,9],[51,7,51,9],[38,5,38,6],[39,5,39,6],[40,5,40,6],[41,5,41,6],[42,5,42,6],[43,5,43,6],[44,5,44,6],[45,5,45,6],[47,5,47,6],[49,5,49,6],[51,5,51,6],[47,0,47,1],[49,0,49,1],[44,0,44,1],[2,0,2,8],[3,0,3,8],[6,1,6,8],[7,1,7,8],[0,0,0,9],[72,0,72,9],[69,0,69,1],[67,0,67,1],[65,0,65,1],[63,0,63,1],[64,0,64,1],[57,0,57,1],[62,0,62,1],[51,0,51,1],[54,0,54,9],[39,7,39,9],[40,7,40,9],[41,7,41,9],[42,7,42,9],[43,7,43,9],[44,7,44,9],[45,7,45,9],[47,7,47,9],[49,7,49,9],[45,0,45,1],[43,0,43,1],[40,0,40,1],[41,0,41,1],[39,0,39,1],[20,5,20,6],[20,7,20,9],[42,0,42,1],[23,5,23,6],[23,7,23,9],[23,0,23,1],[24,0,24,1],[24,5,24,6],[24,7,24,9],[25,0,25,1],[25,5,25,6],[25,7,25,9],[26,0,26,1],[26,5,26,6],[26,7,26,9],[29,0,29,1],[29,5,29,6],[29,7,29,9],[30,0,30,1],[13,0,14,9],[38,7,38,9],[38,0,38,1],[16,0,16,9],[20,0,20,1],[21,0,21,1],[21,5,21,6],[21,7,21,9],[22,0,22,1],[22,5,22,6],[22,7,22,9],[30,5,30,6],[30,7,30,9],[32,0,32,1],[32,5,32,6],[32,7,32,9]]}
[{"$f":"'A) ESTADO REPR. GASTOS'!A2:J2","v":"Convocatoria Severo Ochoa/ María de Maeztu 2015- Informe de Seguimiento Económico Anual. Memoria económica abreviada (versión 10/01/2017)"}]
[]
["MEMORIA ECONÓMICA ABREVIADA"]
["E) DETALLE DE GASTOS DE BIENES INVENTARIABLES, MATERIAL FUNGIBLE Y OTROS GASTOS"]
[]
["REFERENCIA DE LA AYUDA:",{"$f":"'A) ESTADO REPR. GASTOS'!B6:C6","v":"Introduzca referencia"}]
["BENEFICIARIO:",{"$f":"'A) ESTADO REPR. GASTOS'!B7:I7","v":"Introduzca el nombre del Beneficiario"}]
["CENTRO:",{"$f":"'A) ESTADO REPR. GASTOS'!B8:I8","v":"Introduzca el nombre del Centro/Unidad Acreditado como Severo Ochoa/ María de Maeztu"}]
["AÑO CONVOCATORIA:",{"$f":"'A) ESTADO REPR. GASTOS'!B9","v":"Año"},"NIF",{"$f":"'A) ESTADO REPR. GASTOS'!D9:I9","v":"Introduzca el CIF del beneficiario"}]
[]
["PERIODO JUSTIFICADO:","INICIO (dd/mm/aaaa):",{"$f":"'A) ESTADO REPR. GASTOS'!D11","v":"dd/mm/aaaa"}]
[null,"FIN (dd/mm/aaaa):",{"$f":"'A) ESTADO REPR. GASTOS'!D12","v":"dd/mm/aaaa"}]
[]
["MUY IMPORTANTE: \n\nSe recuerda que las contrataciones de servicios y suministros llevadas a cabo por los beneficiarios y con cargo a las ayudas a las que se refieren estas instrucciones deberán ajustarse a lo dispuesto en el artículo 31.3 de la Ley General de Subvenciones y, en su caso, a la legislación que les sea de aplicación en materia de contratos según lo previsto en el Texto Refundido de la Ley de Contratos del Sector Público  (TRLCSP).\n\nDebe cumplimentarse este apartado independientemente de la justificación económica enviada por la entidad. Indique los principales conceptos de gastos con su importe, no el desglose de las facturas del proyecto, para valorar su adecuación a los objetivos y actividades realizadas en el proyecto.\n"]
[]
[]
["Material Inventariable. Describa pormenorizadamente el material inventariable de forma que permita establecer la vinculación del gasto efectuado con la actividad subvencionada. Recuerde que el gasto en infraestructuras no debe sobrepasar el concedido en la resolución de concesión."]
[]
["1. INFRAESTRUCTURAS"]
[]
["DESCRIPCIÓN DE INFRAESTRUCTURAS",null,"GASTO TOTAL","COFINANCIACIÓN","IMPUTABLE A SEV/MDM","EMPRESA PROVEEDORA / MARCA / MODELO",null,"JUSTIFICACIÓN DE LA ADQUISICIÓN"]
[null,null,null,{"$f":"+C22-E22","v":0}]
[null,null,null,{"$f":"+C23-E23","v":0}]
[null,null,null,0]
[null,null,null,0]
[null,null,null,0]
[null,null,null,0]
[null,null,null,0]
[null,null,null,0]
[null,null,null,0]
[null,null,null,0]
["Inserte aquí más filas si es necesario"]
[null,null,null,0]
[]
["TOTAL:",null,{"$f":"SUM(C22:C33)","v":0},{"$f":"SUM(D22:D33)","v":0},{"$f":"SUM(E22:E33)","v":0}]
[]
["2. OTRO MATERIAL INVENTARIABLE"]
[]
["DESCRIPCIÓN DE OTROS BIENES INVENTARIABLES",null,"GASTO TOTAL","COFINANCIACIÓN","IMPUTABLE A SEV/MDM","EMPRESA PROVEEDORA / MARCA / MODELO",null,"JUSTIFICACIÓN DE LA ADQUISICIÓN"]
[null,null,null,{"$f":"+C40-E40","v":0}]
[null,null,null,0]
[null,null,null,0]
[null,null,null,0]
[null,null,null,0]
[null,null,null,0]
[null,null,null,0]
[null,null,null,0]
[null,null,null,0]
["Inserte aquí más filas si es necesario"]
[null,null,null,{"$f":"+C50-E50","v":0}]
[]
["TOTAL:",null,{"$f":"SUM(C40:C50)","v":0},{"$f":"SUM(D40:D50)","v":0},{"$f":"SUM(E40:E50)","v":0}]
[]
[]
["3. MATERIAL FUNGIBLE. Agrupe el gasto realizado en material fungible por categorías y describa cada una de ellas."]
[]
["DESCRIPCIÓN DEL MATERIAL FUNGIBLE",null,"GASTO TOTAL","COFINANCIACIÓN","IMPUTABLE A SEV/MDM","JUSTIFICACIÓN DE LA ADQUISICIÓN"]
[null,null,null,{"$f":"+C58-E58","v":0}]
[null,null,null,{"$f":"+C59-E59","v":0}]
[null,null,null,0]
[null,null,null,0]
[null,null,null,0]
[null,null,null,0]
[null,null,null,0]
[null,null,null,0]
[null,null,null,0]
["Inserte aquí más filas si es necesario"]
[null,null,null,0]
[]
["TOTAL:",null,{"$f":"SUM(C58:C68)","v":0},{"$f":"SUM(D58:D68)","v":0},{"$f":"SUM(E58:E68)","v":0}]
[]
[]
["4. OTROS GASTOS. Agrupe  los gastos incluidos en la justificación que no se han consignado en el resto de las categorías (seguros, gastos de mensajería, servicios internos, etc.). Incluya al menos una categoría de consultoría, asistencia técnica u otros servicios."]
[]
[]
[]
["DESCRIPCIÓN DE LOS OTROS GASTOS",null,"GASTO TOTAL","COFINANCIACIÓN","IMPUTABLE A SEV/MDM","JUSTIFICACIÓN DE LA ADQUISICIÓN"]
[null,null,null,{"$f":"+C78-E78","v":0}]
[null,null,null,{"$f":"+C79-E79","v":0}]
[null,null,null,0]
[null,null,null,0]
[null,null,null,0]
[null,null,null,0]
[null,null,null,0]
[null,null,null,0]
[null,null,null,0]
["Inserte aquí más filas si es necesario"]
[null,null,null,0]
[]
["TOTAL:",null,{"$f":"SUM(C78:C88)","v":0},{"$f":"SUM(D78:D88)","v":0},{"$f":"SUM(E78:E88)","v":0}]